fUSD/lending_fUSD_20260201
["ID","MTS","AMOUNT","RATE_DAILY","PERIOD"]
[404216622,1769970109668,-664.26,0.00043287,120]
[404216623,1769970109726,-1117.81,0.00043287,120]
[404216624,1769970109782,-664.26,0.00043287,120]
[404216625,1769970109838,-1117.95772377,0.00043287,120]
[404216626,1769970109897,-664.26,0.00043287,120]
[404216627,1769970109954,-664.26,0.00043287,120]
[404216628,1769970110017,-664.26,0.00043287,120]
[404216629,1769970110074,-664.26,0.00043287,120]
[404216630,1769970110129,-664.26,0.00043287,120]
[404216631,1769970110188,-500.0,0.00043287,120]
[404216632,1769970110245,-664.26,0.00043287,120]
[404216633,1769970110302,-500.0,0.00043287,120]
[404216634,1769970110359,-664.26,0.00043287,120]
[404216635,1769970110416,-500.0,0.00043287,120]
[404216636,1769970110472,-664.26,0.00043287,120]
[404216637,1769970110527,-500.0,0.00043287,120]
[404216638,1769970110585,-664.26,0.00043287,120]
[404216639,1769970110656,-500.0,0.00043287,120]
[404216640,1769970110717,-660.38,0.00043287,120]
[404216641,1769970110774,-664.26,0.00043287,120]
[404216642,1769970110833,-500.0,0.00043287,120]
[404216643,1769970110891,-664.26,0.00043287,120]
[404216644,1769970110949,-660.38,0.00043287,120]
[404216645,1769970111008,-500.0,0.00043287,120]
[404216646,1769970111067,-660.38,0.00043287,120]
[404216647,1769970111125,-664.26,0.00043287,120]
[404216648,1769970111183,-500.0,0.00043287,120]
[404216649,1769970111241,-664.26,0.00043287,120]
[404216650,1769970111298,-660.38,0.00043287,120]
[404216651,1769970111353,-500.0,0.00043287,120]
[404216652,1769970111410,-660.38,0.00043287,120]
[404216653,1769970111468,-664.26,0.00043287,120]
[404216654,1769970111526,-500.0,0.00043287,120]
[404216655,1769970111585,-375.78778333,0.00043287,120]
[404216656,1769970111643,-660.38,0.00043287,120]
[404216657,1769970111700,-664.26,0.00043287,120]
[404216658,1769970111764,-500.0,0.00043287,120]
[404216659,1769970111822,-500.0,0.00043287,120]
[404216660,1769970111881,-660.38,0.00043287,120]
[404216661,1769970111940,-500.0,0.00043287,120]
[404216662,1769970112000,-168.44642849,0.00043287,120]
[404216663,1769970112060,-500.0,0.00043287,120]
[404216664,1769970112119,-660.38,0.00043287,120]
[404216665,1769970112177,-500.0,0.00043287,120]
[404216666,1769970112235,-664.26,0.00043287,120]
[404216667,1769970112292,-500.0,0.00043287,120]
[404216668,1769970112351,-660.38,0.00043287,120]
[404216669,1769970112411,-664.26,0.00043287,120]
[404216670,1769970112471,-500.0,0.00043287,120]
[404216671,1769970112529,-500.0,0.00043287,120]
[404216672,1769970112589,-660.38,0.00043287,120]
[404216673,1769970112652,-664.26,0.00043287,120]
[404216674,1769970112714,-500.0,0.00043287,120]
[404216675,1769970112774,-249.64576034,0.00043287,120]
[404216676,1769970113046,-500.0,0.00043287,120]
[404216677,1769970113110,-660.38,0.00043287,120]
[404216678,1769970113169,-500.0,0.00043287,120]
[404216679,1769970113229,-500.0,0.00043287,120]
[404216680,1769970113289,-660.38,0.00043287,120]
[404216681,1769970113348,-265.98366982,0.00043287,120]
[404216682,1769970113406,-664.26,0.00043287,120]
[404216683,1769970113466,-660.38,0.00043287,120]
[404216684,1769970113524,-664.26,0.00043287,120]
[404216685,1769970113584,-660.38,0.00043287,120]
[404216686,1769970113641,-410.24103502,0.00043287,60]
[404216687,1769970113699,-664.40895293,0.00043287,120]
[404216688,1769970113760,-660.38,0.00043287,120]
[404216689,1769970113819,-660.38,0.00043287,120]
[404216690,1769970113879,-660.38,0.00043287,120]
[404216691,1769970113939,-660.38,0.00043287,120]
[404216692,1769970113998,-660.38,0.00043287,120]
[404216693,1769970114056,-660.38,0.00043287,120]
[404216694,1769970114115,-660.38,0.00043287,120]
[404216695,1769970114177,-660.38,0.00043287,120]
[404216696,1769970114238,-660.38,0.00043287,120]
[404216697,1769970114296,-500.0,0.00043287,120]
[404216698,1769970114355,-660.58603777,0.00043287,120]
[404216699,1769970114416,-500.0,0.00043287,120]
[404216700,1769970114474,-500.0,0.00043287,120]
[404216701,1769970114532,-500.0,0.00043287,120]
[404216702,1769970114590,-500.0,0.00043287,120]
[404216703,1769970114647,-416.10602004,0.00043287,120]
[404216704,1769970114704,-500.0,0.00043287,120]
[404216705,1769970114763,-500.0,0.00043287,120]
[404216706,1769970114820,-500.0,0.00043287,120]
[404216707,1769970114878,-500.0,0.00043287,120]
[404216708,1769970114937,-500.0,0.00043287,120]
[404216709,1769970114995,-500.0,0.00043287,120]
[404216710,1769970115054,-500.0,0.00043287,120]
[404216711,1769970115112,-248.56356492,0.00043287,120]
[404216712,1769970115171,-500.0,0.00043287,120]
[404216713,1769970115230,-211.85858956,0.00043287,120]
[404216714,1769970115286,-814.41,0.00043287,120]
[404216715,1769970115342,-500.0,0.00043287,120]
[404216716,1769970115398,-814.41,0.00043287,120]
[404216717,1769970115455,-500.0,0.00043287,120]
[404216718,1769970115513,-814.41,0.00043287,120]
[404216719,1769970115570,-500.0,0.00043287,120]
[404216720,1769970115628,-814.41,0.00043287,120]
[404216721,1769970115683,-500.0,0.00043287,120]
[404216722,1769970115741,-500.0,0.00043287,120]
[404216723,1769970115799,-325.51933074,0.00043287,120]
[404216724,1769970115857,-814.41,0.00043287,120]
[404216725,1769970115914,-500.0,0.00043287,120]
[404216726,1769970115973,-500.0,0.00043287,120]
[404216727,1769970116032,-814.41,0.00043287,120]
[404216728,1769970116090,-500.0,0.00043287,120]
[404216729,1769970116148,-500.0,0.00043287,120]
[404216730,1769970116206,-814.41,0.00043287,120]
[404216731,1769970116265,-500.0,0.00043287,120]
[404216732,1769970116321,-500.0,0.00043287,120]
[404216733,1769970116377,-814.41,0.00043287,120]
[404216734,1769970116432,-500.0,0.00043287,120]
[404216735,1769970116488,-500.0,0.00043287,120]
[404216736,1769970116546,-814.41,0.00043287,120]
[404216737,1769970116605,-500.0,0.00043287,120]
[404216738,1769970116661,-500.0,0.00043287,120]
[404216739,1769970116720,-814.41,0.00043287,120]
[404216740,1769970116778,-500.0,0.00043287,120]
[404216741,1769970116835,-508.41248546,0.00043287,120]
[404216742,1769970116890,-500.0,0.00043287,120]
[404216743,1769970116947,-814.41,0.00043287,120]
[404216744,1769970117011,-303.37549408,0.00043287,120]
[404216745,1769970117072,-500.0,0.00043287,120]
[404216746,1769970117129,-814.41,0.00043287,120]
[404216747,1769970117187,-500.0,0.00043287,120]
[404216748,1769970117245,-814.41,0.00043287,120]
[404216749,1769970117301,-814.41,0.00043287,120]
[404216750,1769970117357,-500.0,0.00043287,120]
[404216751,1769970117414,-814.41,0.00043287,120]
[404216752,1769970117470,-500.0,0.00043287,120]
[404216753,1769970117527,-324.92372945,0.00043287,120]
[404216754,1769970117583,-814.41,0.00043287,120]
[404216755,1769970117638,-814.41,0.00043287,120]
[404216756,1769970117693,-500.0,0.00043287,120]
[404216757,1769970117749,-814.41,0.00043287,120]
[404216758,1769970117806,-500.0,0.00043287,120]
[404216759,1769970117862,-814.41,0.00043287,120]
[404216760,1769970117919,-814.41,0.00043287,120]
[404216761,1769970117978,-500.0,0.00043287,120]
[404216762,1769970118033,-814.41,0.00043287,120]
[404216763,1769970118089,-500.0,0.00043287,120]
[404216764,1769970118145,-500.0,0.00043287,120]
[404216765,1769970118202,-814.41,0.00043287,120]
[404216766,1769970118257,-527.62,0.00043287,120]
[404216767,1769970118312,-500.0,0.00043287,120]
[404216768,1769970118366,-814.41,0.00043287,120]
[404216769,1769970118419,-527.62,0.00043287,120]
[404216770,1769970118476,-500.0,0.00043287,120]
[404216771,1769970118701,-814.60202253,0.00043287,120]
[404216772,1769970118758,-527.62,0.00043287,120]
[404216773,1769970118813,-500.0,0.00043287,120]
[404216774,1769970118867,-500.0,0.00043287,120]
[404216775,1769970118925,-527.62,0.00043287,120]
[404216776,1769970118980,-500.0,0.00043287,120]
[404216777,1769970119038,-527.62,0.00043287,120]
[404216778,1769970119096,-500.0,0.00043287,120]
[404216779,1769970119152,-527.62,0.00043287,120]
[404216780,1769970119209,-500.0,0.00043287,120]
[404216781,1769970119267,-527.62,0.00043287,120]
[404216782,1769970119324,-500.0,0.00043287,120]
[404216783,1769970119381,-527.62,0.00043287,120]
[404216784,1769970119438,-500.0,0.00043287,120]
[404216785,1769970119494,-500.0,0.00043287,120]
[404216786,1769970119550,-500.0,0.00043287,120]
[404216787,1769970119607,-527.62,0.00043287,120]
[404216788,1769970119664,-495.90167934,0.00043287,120]
[404216789,1769970119722,-216.73112904,0.00043287,120]
[404216790,1769970119779,-500.0,0.00043287,120]
[404216791,1769970119836,-527.62,0.00043287,120]
[404216792,1769970119892,-500.0,0.00043287,120]
[404216793,1769970119949,-500.0,0.00043287,120]
[404216794,1769970120005,-527.62,0.00043287,120]
[404216795,1769970120069,-500.0,0.00043287,120]
[404216796,1769970120125,-500.0,0.00043287,120]
[404216797,1769970120183,-527.62,0.00043287,120]
[404216798,1769970120242,-500.0,0.00043287,120]
[404216799,1769970120304,-500.0,0.00043287,120]
[404216800,1769970120359,-527.62,0.00043287,120]
[404216801,1769970120412,-500.41,0.00043287,120]
[404216802,1769970120465,-299.16760637,0.00043287,120]
[404216803,1769970120520,-527.62,0.00043287,120]
[404216804,1769970120577,-527.62,0.00043287,120]
[404216805,1769970120631,-1190.56,0.00043287,120]
[404216806,1769970120687,-527.62,0.00043287,120]
[404216807,1769970120741,-1190.56,0.00043287,120]
[404216808,1769970120796,-500.0,0.00043287,120]
[404216809,1769970120851,-527.62,0.00043287,120]
[404216810,1769970120905,-527.62,0.00043287,120]
[404216811,1769970120960,-1190.56,0.00043287,120]
[404216812,1769970121019,-500.0,0.00043287,120]
[404216813,1769970121076,-527.62,0.00043287,120]
[404216814,1769970121132,-500.0,0.00043287,120]
[404216815,1769970121187,-1190.56,0.00043287,120]
[404216816,1769970121241,-527.62,0.00043287,120]
[404216817,1769970121296,-500.0,0.00043287,120]
[404216818,1769970121354,-1190.56,0.00043287,120]
[404216819,1769970121409,-527.62,0.00043287,120]
[404216820,1769970121464,-267.77139345,0.00043287,120]
[404216821,1769970121518,-1190.56,0.00043287,120]
[404216822,1769970121571,-1190.56,0.00043287,120]
[404216823,1769970121626,-1190.56,0.00043287,120]
[404216824,1769970121681,-527.62,0.00043287,120]
[404216825,1769970121739,-1190.56,0.00043287,120]
[404216826,1769970121795,-527.62,0.00043287,120]
[404216827,1769970121852,-1190.56,0.00043287,120]
[404216828,1769970121907,-527.64359147,0.00043287,120]
[404216829,1769970121972,-1190.56,0.00043287,120]
[404216830,1769970122036,-722.16,0.00043287,120]
[404216831,1769970122100,-1190.56,0.00043287,120]
[404216832,1769970122159,-722.16,0.00043287,120]
[404216833,1769970122216,-1190.56,0.00043287,120]
[404216834,1769970122279,-722.16,0.00043287,120]
[404216835,1769970122335,-1190.56,0.00043287,120]
[404216836,1769970122390,-500.0,0.00043287,120]
[404216837,1769970122446,-722.16,0.00043287,120]
[404216838,1769970122501,-1190.56,0.00043287,120]
[404216839,1769970122557,-500.0,0.00043287,120]
[404216840,1769970122613,-722.16,0.00043287,120]
[404216841,1769970122668,-1190.56,0.00043287,120]
[404216842,1769970122726,-485.33142892,0.00043287,120]
[404216843,1769970122784,-722.16,0.00043287,120]
[404216844,1769970122842,-1190.56,0.00043287,120]
[404216845,1769970122897,-1026.4,0.00043287,120]
[404216846,1769970122957,-722.16,0.00043287,120]
[404216847,1769970123026,-1190.56,0.00043287,120]
[404216848,1769970123087,-500.0,0.00043287,120]
[404216849,1769970123146,-1026.4,0.00043287,120]
[404216850,1769970123205,-722.16,0.00043287,120]
[404216851,1769970123267,-1190.56,0.00043287,120]
[404216852,1769970123325,-500.0,0.00043287,120]
[404216853,1769970123383,-1026.4,0.00043287,120]
[404216854,1769970123441,-722.16,0.00043287,120]
[404216855,1769970123501,-731.1,0.00043287,120]
[404216856,1769970123561,-1190.56,0.00043287,120]
[404216857,1769970123620,-500.0,0.00043287,120]
[404216858,1769970123681,-722.16,0.00043287,120]
[404216859,1769970123739,-731.1,0.00043287,120]
[404216860,1769970123796,-1026.4,0.00043287,120]
[404216861,1769970123856,-500.0,0.00043287,120]
[404216862,1769970123916,-1190.56,0.00043287,120]
[404216863,1769970123978,-722.16,0.00043287,120]
[404216864,1769970124036,-731.1,0.00043287,120]
[404216865,1769970124249,-1026.4,0.00043287,120]
[404216866,1769970124311,-500.0,0.00043287,120]
[404216867,1769970124368,-722.16,0.00043287,120]
[404216868,1769970124426,-731.1,0.00043287,120]
[404216869,1769970124483,-1190.56,0.00043287,120]
[404216870,1769970124543,-1026.4,0.00043287,120]
[404216871,1769970124601,-500.0,0.00043287,120]
[404216872,1769970124659,-722.16,0.00043287,120]
[404216873,1769970124716,-731.1,0.00043287,120]
[404216874,1769970124776,-1190.56,0.00043287,120]
[404216875,1769970124836,-1026.4,0.00043287,120]
[404216876,1769970124897,-722.16,0.00043287,120]
[404216877,1769970124956,-500.0,0.00043287,120]
[404216878,1769970125020,-731.1,0.00043287,120]
[404216879,1769970125079,-1190.60101826,0.00043287,120]
[404216880,1769970125138,-1026.4,0.00043287,120]
[404216881,1769970125198,-500.0,0.00043287,120]
[404216882,1769970125257,-731.1,0.00043287,120]
[404216883,1769970125315,-1026.4,0.00043287,120]
[404216884,1769970125373,-722.16,0.00043287,120]
[404216885,1769970125435,-731.1,0.00043287,120]
[404216886,1769970125496,-1026.4,0.00043287,120]
[404216887,1769970125554,-722.16,0.00043287,120]
[404216888,1769970125611,-500.0,0.00043287,120]
[404216889,1769970125668,-731.1,0.00043287,120]
[404216890,1769970125728,-1026.4,0.00043287,120]
[404216891,1769970125785,-722.16,0.00043287,120]
[404216892,1769970125846,-500.0,0.00043287,120]
[404216893,1769970125905,-409.2537215,0.00043287,70]
[404216894,1769970125962,-500.0,0.00043288,60]
[404216895,1769970126024,-217.26244961,0.00043298,120]
[404216896,1769970126081,-217.26244961,0.00043298,120]
[404216897,1769970126140,-168.83,0.000433,120]
[404216898,1769970126198,-500.0,0.00043343,60]
[404216899,1769970126259,-500.0,0.00043397,120]
[404216900,1769970126318,-500.0,0.00043397,60]
[404216901,1769970126380,-1729.3747,0.00043429,30]
[404216902,1769970126440,-344.0,0.00043452,60]
[404216903,1769970126502,-150.0,0.000435,55]
[404216904,1769970126561,-152.0,0.000435,120]
[404216905,1769970126620,-150.0,0.000435,67]
[404216906,1769970126679,-500.0,0.00043534,120]
[404216907,1769970126737,-2069.84,0.00043595,120]
[404216908,1769970126796,-1469.36,0.00043595,120]
[404216909,1769970126854,-150.0,0.000436,60]
[404216910,1769970126914,-12794.0439,0.000436,90]
[404216911,1769970126977,-150.0,0.00043625,120]
[404216912,1769970127038,-2059.0,0.00043634,30]
[404216913,1769970127104,-278.36328388,0.00043636,120]
[404216914,1769970127165,-50000.0,0.00043638,57]
[404216915,1769970127233,-151.0,0.00043639,120]
[404216916,1769970127296,-151.0,0.00043639,120]
[404216917,1769970127359,-275.770062,0.00043639,120]
[404216918,1769970127420,-151.0,0.00043639,120]
[404216919,1769970127481,-151.0,0.00043639,120]
[404216920,1769970127541,-226.86096,0.00043639,120]
[404216921,1769970127601,-238.70923721,0.00043639,30]
[404216922,1769970127662,-151.0,0.00043639,30]
[404216923,1769970127728,-266.0,0.00043639,60]
[404216924,1769970127803,-952.30576657,0.00043639,30]
[404216925,1769970127867,-952.30576657,0.00043639,30]
[404216926,1769970127932,-267.95317602,0.00043642,30]
[404216927,1769970127994,-267.95317602,0.00043642,30]
[404216928,1769970128054,-161.29,0.00043642,120]
[404216929,1769970128113,-970.88,0.00043644,30]
[404216930,1769970128180,-150.0,0.00043644,30]
[404216931,1769970128243,-485.44,0.00043644,30]
[404216932,1769970128307,-485.44,0.00043644,30]
[404216933,1769970128368,-485.44,0.00043644,30]
[404216934,1769970128427,-485.44,0.00043644,30]
[404216935,1769970128484,-485.44,0.00043644,30]
[404216936,1769970128544,-485.44,0.00043644,30]
[404216937,1769970128603,-485.44,0.00043644,30]
[404216938,1769970128669,-485.44,0.00043644,30]
[404216939,1769970128733,-485.44,0.00043644,30]
[404216940,1769970128796,-485.44,0.00043644,30]
[404216941,1769970128857,-485.44,0.00043644,30]
[404216942,1769970128917,-485.44,0.00043644,30]
[404216943,1769970128981,-485.44,0.00043644,30]
[404216944,1769970129042,-485.44,0.00043644,30]
[404216945,1769970129104,-485.44,0.00043644,30]
[404216946,1769970129168,-485.44,0.00043644,30]
[404216947,1769970129229,-485.44,0.00043644,30]
[404216948,1769970129291,-485.44,0.00043644,30]
[404216949,1769970129352,-485.44,0.00043644,30]
[404216950,1769970129409,-485.44,0.00043644,30]
[404216951,1769970129466,-485.44,0.00043644,30]
[404216952,1769970129527,-485.44,0.00043644,30]
[404216953,1769970129587,-485.44,0.00043644,30]
[404216954,1769970129649,-485.44,0.00043644,30]
[404216955,1769970129707,-485.44,0.00043644,30]
[404216956,1769970129773,-485.44,0.00043644,30]
[404216957,1769970129831,-485.44,0.00043644,30]
[404216958,1769970129890,-485.44,0.00043644,30]
[404216959,1769970129947,-485.44,0.00043644,30]
[404216960,1769970130222,-485.44,0.00043644,30]
[404216961,1769970130280,-485.44,0.00043644,30]
[404216962,1769970130339,-485.44,0.00043644,30]
[404216963,1769970130397,-485.44,0.00043644,30]
[404216964,1769970130454,-485.44,0.00043644,30]
[404216965,1769970130510,-485.44,0.00043644,30]
[404216966,1769970130571,-485.44,0.00043644,30]
[404216967,1769970130638,-485.44,0.00043644,30]
[404216968,1769970130702,-485.44,0.00043644,30]
[404216969,1769970130764,-485.44,0.00043644,30]
[404216970,1769970130827,-485.44,0.00043644,30]
[404216971,1769970130885,-485.44,0.00043644,30]
[404216972,1769970130943,-485.44,0.00043644,30]
[404216973,1769970131003,-485.44,0.00043644,30]
[404216974,1769970131064,-485.44,0.00043644,30]
[404216975,1769970131122,-485.44,0.00043644,30]
[404216976,1769970131181,-485.44,0.00043644,30]
[404216977,1769970131239,-485.44,0.00043644,30]
[404216978,1769970131298,-485.44,0.00043644,30]
[404216979,1769970131358,-485.44,0.00043644,30]
[404216980,1769970131416,-485.44,0.00043644,30]
[404216981,1769970131476,-485.44,0.00043644,30]
[404216982,1769970131535,-485.44,0.00043644,30]
[404216983,1769970131596,-485.44,0.00043644,30]
[404216984,1769970131654,-485.44,0.00043644,30]
[404216985,1769970131712,-485.44,0.00043644,30]
[404216986,1769970131772,-485.44,0.00043644,30]
[404216987,1769970131829,-485.44,0.00043644,30]
[404216988,1769970131887,-485.44,0.00043644,30]
[404216989,1769970131944,-485.44,0.00043644,30]
[404216990,1769970132005,-500.0,0.00043671,120]
[404216991,1769970132067,-150.0,0.00043682,120]
[404216992,1769970132130,-829.0,0.000437,120]
[404216993,1769970132191,-431.856374,0.000437,42]
[404216994,1769970132250,-153.0,0.000438,120]
[404216995,1769970132310,-409.53986734,0.00043808,120]
[404216996,1769970132369,-800.0,0.00043836,32]
[404216997,1769970132428,-558.240183,0.00044,57]
[404216998,1769970132486,-2059.0,0.0004407,30]
[404216999,1769970132547,-1000.0,0.00044109,120]
[404217000,1769970132607,-200.0,0.00044252,120]
[404217001,1769970132665,-152.0,0.000444,120]
[404217002,1769970132724,-153.0,0.000445,120]
[404217003,1769970132781,-2059.0,0.00044507,30]
[404217004,1769970132839,-150.0,0.00044565,120]
[404217005,1769970132897,-1518.81,0.000448,30]
[404217006,1769970132956,-150.0,0.00044856,120]
[404217007,1769970133017,-1281.662,0.000449,120]
[404217008,1769970133075,-1281.66,0.000449,120]
[404217009,1769970133135,-1080.34001638,0.00044931,120]
[404217010,1769970133196,-2059.0,0.00044943,30]
[404217011,1769970133255,-211.0,0.0004496,30]
[404217012,1769970133312,-50000.0,0.00045,45]
[404217013,1769970133370,-2340.11,0.00045,120]
[404217014,1769970133429,-669.23708,0.00045,120]
[404217015,1769970133488,-232.51,0.00045,120]
[404217016,1769970133546,-150.0,0.00045186,120]
[404217017,1769970133605,-152.0,0.000453,120]
[404217018,1769970133662,-153.0,0.000453,120]
[404217019,1769970133724,-150.0,0.00045784,120]
[404217020,1769970133783,-175.46,0.000458,60]
[404217021,1769970133843,-150.0,0.00045816,120]
[404217022,1769970133900,-153.0,0.00046,120]
[404217023,1769970133960,-150.0,0.000461,120]
[404217024,1769970134026,-200.0,0.00046128,120]
[404217025,1769970134087,-173.47576183,0.000462,120]
[404217026,1769970134144,-209.39631984,0.000462,120]
[404217027,1769970134203,-176.91260221,0.000462,120]
[404217028,1769970134262,-160.15741889,0.000462,120]
[404217029,1769970134319,-203.94592894,0.000462,120]
[404217030,1769970134376,-233.13982998,0.000462,120]
[404217031,1769970134434,-249.40987671,0.000462,120]
[404217032,1769970134491,-180.14798585,0.000462,120]
[404217033,1769970134549,-201.25033977,0.000462,120]
[404217034,1769970134608,-193.91078058,0.000462,120]
[404217035,1769970134668,-152.0,0.000462,120]
[404217036,1769970134725,-1518.81,0.000464,30]
[404217037,1769970134784,-153.0,0.000468,120]
[404217038,1769970134843,-609.55,0.000468,120]
[404217039,1769970134902,-10020.03034958,0.000469,120]
[404217040,1769970134964,-381.08903278,0.00046959,30]
[404217041,1769970135027,-152.43561311,0.00046959,30]
[404217042,1769970135084,-211.0,0.0004698,30]
[404217043,1769970135145,-212.32675339,0.00046997,30]
[404217044,1769970135203,-212.3267534,0.00046997,30]
[404217045,1769970135261,-152.0,0.00047,120]
[404217046,1769970135320,-271.31655593,0.00047,60]
[404217047,1769970135379,-381.08903278,0.00047151,30]
[404217048,1769970135438,-609.55,0.00047208,120]
[404217049,1769970135498,-232.51,0.0004725,120]
[404217050,1769970135555,-381.08903278,0.00047342,30]
[404217051,1769970135611,-152.43561311,0.0004737,30]
[404217052,1769970135672,-381.08903278,0.00047534,30]
[404217053,1769970135731,-173.47576183,0.000476,120]
[404217054,1769970135953,-176.91260221,0.000476,120]
[404217055,1769970136012,-233.13982998,0.000476,120]
[404217056,1769970136070,-249.40987671,0.000476,120]
[404217057,1769970136127,-201.25033977,0.000476,120]
[404217058,1769970136184,-193.91078058,0.000476,120]
[404217059,1769970136243,-153.0,0.000476,120]
[404217060,1769970136300,-609.55,0.00047616,120]
[404217061,1769970136357,-150.0,0.000477,30]
[404217062,1769970136418,-150.0,0.000477,30]
[404217063,1769970136474,-150.86261241,0.000477,30]
[404217064,1769970136541,-150.0,0.000477,30]
[404217065,1769970136597,-154.20677156,0.000477,30]
[404217066,1769970136654,-150.0,0.000477,30]
[404217067,1769970136714,-150.0,0.000477,30]
[404217068,1769970136774,-179.6970665,0.000477,30]
[404217069,1769970136835,-162.3793229,0.000477,30]
[404217070,1769970136895,-150.0,0.000477,30]
[404217071,1769970136955,-150.0,0.000477,30]
[404217072,1769970137018,-150.0,0.000477,30]
[404217073,1769970137081,-150.0,0.000477,30]
[404217074,1769970137142,-159.53337511,0.000477,30]
[404217075,1769970137203,-150.0,0.000477,30]
[404217076,1769970137262,-150.0,0.000477,30]
[404217077,1769970137323,-150.0,0.000477,30]
[404217078,1769970137380,-195.47157131,0.000477,30]
[404217079,1769970137437,-381.08903278,0.00047726,30]
[404217080,1769970137494,-152.43561311,0.00047808,30]
[404217081,1769970137554,-150.0,0.00047851,30]
[404217082,1769970137611,-152.0,0.000479,120]
[404217083,1769970137668,-381.08903278,0.00047918,30]
[404217084,1769970137729,-183.17,0.00047945,120]
[404217085,1769970137790,-150.0,0.00047979,30]
[404217086,1769970137849,-1518.81,0.00048,30]
[404217087,1769970137908,-183.17,0.00048,120]
[404217088,1769970137965,-560.44,0.00048,120]
[404217089,1769970138030,-200.0,0.00048,60]
[404217090,1769970138086,-150.0,0.00048003,30]
[404217091,1769970138148,-200.0,0.00048003,120]
[404217092,1769970138208,-609.55,0.00048024,120]
[404217093,1769970138268,-150.0,0.00048031,30]
[404217094,1769970138327,-150.0,0.00048031,30]
[404217095,1769970138382,-150.0,0.00048051,120]
[404217096,1769970138438,-150.0,0.00048108,30]
[404217097,1769970138499,-150.0,0.00048108,30]
[404217098,1769970138556,-381.08903278,0.0004811,30]
[404217099,1769970138615,-150.0,0.00048142,30]
[404217100,1769970138673,-150.0,0.00048154,30]
[404217101,1769970138734,-152.43561311,0.00048219,30]
[404217102,1769970138792,-150.0,0.00048258,30]
[404217103,1769970138851,-683.07602765,0.00048284,30]
[404217104,1769970138911,-1103.0,0.00048284,30]
[404217105,1769970138968,-829.0,0.000483,120]
[404217106,1769970139033,-153.0,0.000483,120]
[404217107,1769970139094,-381.08903278,0.00048301,30]
[404217108,1769970139153,-150.0,0.00048306,30]
[404217109,1769970139211,-150.0,0.00048363,30]
[404217110,1769970139273,-150.0,0.00048363,30]
[404217111,1769970139335,-609.55,0.00048432,120]
[404217112,1769970139393,-150.0,0.00048457,30]
[404217113,1769970139452,-381.08903278,0.00048466,30]
[404217114,1769970139510,-150.0,0.00048515,30]
[404217115,1769970139567,-150.0,0.00048515,30]
[404217116,1769970139625,-150.0,0.00048537,30]
[404217117,1769970139684,-503.0,0.00048547,30]
[404217118,1769970139743,-150.0,0.00048583,30]
[404217119,1769970139801,-150.0,0.00048609,30]
[404217120,1769970139861,-152.43561311,0.0004863,30]
[404217121,1769970139924,-381.08903278,0.00048658,30]